fUSD/lending_fUSD_20250716
["ID","MTS","AMOUNT","RATE_DAILY","PERIOD"]
[372399079,1752624020039,592.0,0.0003013,120]
[372399082,1752624044191,592.0,0.0003013,120]
[372399083,1752624055833,592.0,0.0003013,120]
[372399084,1752624136881,51989.0,0.00030136,120]
[372399085,1752624178596,519.0,0.00017502,2]
[372399087,1752624254008,165.94,0.00013699,2]
[372399099,1752624417804,5000.0,0.00011,2]
[372399145,1752624486369,5000.0,0.00014,2]
[372399146,1752624573315,5000.0,0.00015,2]
[372399147,1752624585859,5000.0,0.00016,2]
[372399153,1752624631846,-500.0,0.00018909,2]
[372399154,1752624631856,-4572.0,0.00019,2]
[372399155,1752624631867,-179.82,0.00019178,2]
[372399156,1752624631880,-519.0,0.00019335,2]
[372399157,1752624631894,-1427.11234369,0.000199,2]
[372399158,1752624631904,-326.13,0.0001999,2]
[372399159,1752624631914,-1200.0,0.00019999,2]
[372399160,1752624631923,-1300.0,0.0002,5]
[372399161,1752624631933,-1280.0,0.0002,3]
[372399162,1752624631943,-1517.5,0.0002,6]
[372399163,1752624631952,-150.0,0.0002,7]
[372399164,1752624631962,-12394.58,0.00020005,2]
[372399165,1752624631973,-1427.11234357,0.00020038,2]
[372399166,1752624631983,-150.0,0.00020042,2]
[372399167,1752624631993,-644.0,0.00020082,2]
[372399168,1752624632004,-1427.11234357,0.00020176,2]
[372399169,1752624632014,-165.94,0.00020187,2]
[372399170,1752624632026,-2014.46,0.00020221,2]
[372399171,1752624632036,-190.0,0.00020258,7]
[372399172,1752624632046,-1000.0,0.00020263,2]
[372399173,1752624632056,-4398.76,0.00020263,2]
[372399174,1752624632066,-1427.11234357,0.00020314,3]
[372399175,1752624632076,-1749.82,0.00020356,2]
[372399176,1752624632086,-402.0,0.00020404,2]
[372399177,1752624632095,-2530.57,0.00020405,2]
[372399178,1752624632106,-2507.27,0.00020405,2]
[372399179,1752624632116,-21656.78,0.00020405,2]
[372399180,1752624632125,-150.0,0.00020405,2]
[372399181,1752624632135,-163.22,0.00020408,2]
[372399182,1752624632144,-1427.11234357,0.00020452,3]
[372399183,1752624632155,-3879.55,0.00020499,2]
[372399184,1752624632164,-610.0,0.00020499,2]
[372399185,1752624632175,-1427.11234357,0.0002059,3]
[372399186,1752624632185,-167.18,0.00020605,2]
[372399187,1752624632195,-159.31,0.00020681,2]
[372399188,1752624632205,-1427.11234357,0.00020728,3]
[372399189,1752624632215,-326.13,0.00020739,2]
[372399191,1752624632225,-159.31,0.0002075,2]
[372399193,1752624632235,-250.0,0.00020761,2]
[372399194,1752624632244,-250.0,0.000208,2]
[372399195,1752624632254,-159.31,0.00020819,2]
[372399196,1752624632263,-1427.11234357,0.00020866,4]
[372399197,1752624632274,-159.31,0.00020888,2]
[372399198,1752624632283,-2139.7,0.00020913,2]
[372399199,1752624632292,-553.23,0.00020969,2]
[372399200,1752624632302,-23900.0,0.00020977,2]
[372399201,1752624632311,-11677.81301164,0.00021,2]
[372399202,1752624632320,-1395.0,0.00021,2]
[372399204,1752624632330,-500.0,0.00021002,2]
[372399206,1752624632339,-500.0,0.00021002,2]
[372399207,1752624632349,-1427.11234357,0.00021003,4]
[372399209,1752624632359,-207.4,0.00021022,2]
[372399210,1752624632368,-167.93981988,0.00021022,2]
[372399211,1752624632381,-939.1767396,0.00021022,2]
[372399212,1752624632390,-1427.11234357,0.00021141,4]
[372399213,1752624632399,-1427.11234357,0.00021279,5]
[372399214,1752624632408,-1427.11234357,0.00021417,5]
[372399215,1752624632418,-1820.709419,0.00021479,2]
[372399216,1752624632427,-326.13,0.00021489,2]
[372399217,1752624632436,-4259.53579047,0.00021496,2]
[372399218,1752624632447,-4259.5357904,0.00021547,2]
[372399219,1752624632457,-1427.11234357,0.00021555,5]
[372399220,1752624632466,-21350.0,0.00021596,2]
[372399221,1752624632475,-4259.5357904,0.00021598,2]
[372399222,1752624632484,-4259.5357904,0.00021649,2]
[372399223,1752624632493,-1427.11234357,0.00021693,5]
[372399224,1752624632502,-1745.02432701,0.000217,2]
[372399225,1752624632545,-2514.51146339,0.000217,2]
[372399226,1752624632555,-4259.5357904,0.0002175,2]
[372399227,1752624632564,-174.22774891,0.000218,2]
[372399228,1752624632573,-4259.5357904,0.00021801,2]
[372399229,1752624632583,-565.78039647,0.00021804,2]
[372399230,1752624632592,-156.64659961,0.00021816,2]
[372399231,1752624632601,-1000.0,0.00021817,2]
[372399232,1752624632611,-5000.0,0.00021817,2]
[372399233,1752624632620,-271.68503653,0.00021817,2]
[372399234,1752624632630,-565.78039646,0.00021821,2]
[372399235,1752624632640,-1427.11234357,0.00021831,6]
[372399236,1752624632650,-565.78039646,0.00021837,2]
[372399237,1752624632660,-4259.5357904,0.00021852,2]
[372399238,1752624632670,-565.78039646,0.00021854,2]
[372399239,1752624632680,-565.78039646,0.00021871,2]
[372399240,1752624632689,-1680.0,0.00021881,2]
[372399241,1752624632699,-565.78039646,0.00021887,2]
[372399242,1752624632708,-2000.0,0.00021899,2]
[372399243,1752624632718,-300.19422267,0.00021899,2]
[372399244,1752624632727,-500.0,0.00021899,2]
[372399245,1752624632737,-317.44717764,0.00021899,2]
[372399246,1752624632747,-509.65996133,0.00021899,2]
[372399247,1752624632755,-1980.55,0.000219,2]
[372399248,1752624632764,-55665.70008806,0.000219,2]
[372399249,1752624632802,-745.09145058,0.000219,2]
[372399250,1752624632813,-1573.9416,0.000219,2]
[372399251,1752624632824,-624.02881319,0.000219,2]
[372399252,1752624632882,-641.50899971,0.000219,2]
[372399253,1752624632894,-336.33514307,0.000219,2]
[372399254,1752624632907,-1518.8,0.000219,2]
[372399468,1752624646315,-656.693,0.00021596,2]
[372399469,1752624646325,-38544.75241864,0.000219,2]
[372399470,1752624646348,-926.5064,0.000219,2]
[372399471,1752624646557,-7683.74548069,0.000219,2]
[372399472,1752624735120,209.52959652,0.0002,30]
[372399473,1752625233063,160.0,0.0003,120]
[372399474,1752625234897,160.0,0.0003,120]
[372399475,1752625235280,160.0,0.0003,120]
[372399476,1752625236899,160.0,0.0003,120]
[372399478,1752625262383,160.0,0.0003,120]
[372399479,1752625263990,160.0,0.0003,120]
[372399480,1752625264191,160.0,0.0003,120]
[372399481,1752625264370,160.0,0.0003,120]
[372399482,1752625264475,160.0,0.0003,120]
[372399483,1752625265550,173.23,0.00013699,2]
[372399484,1752625266464,160.0,0.0003,120]
[372399485,1752625272746,160.0,0.0003,120]
[372399486,1752625273245,160.0,0.0003,120]
[372399487,1752625273668,160.0,0.0003,120]
[372399488,1752625274758,160.0,0.0003,120]
[372399489,1752625275353,160.0,0.0003,120]
[372399490,1752625275596,160.0,0.0003,120]
[372399491,1752625275785,160.0,0.0003,120]
[372399492,1752625301694,160.0,0.0003,120]
[372399493,1752625302145,160.0,0.0003,120]
[372399494,1752625302505,160.0,0.0003,120]
[372399495,1752625318777,160.0,0.000175,2]
[372399496,1752625321032,160.0,0.000175,2]
[372399497,1752625373265,170.0,0.0003,120]
[372399498,1752625374274,170.0,0.0003,120]
[372399499,1752625404838,170.0,0.0003,120]
[372399500,1752625496300,170.0,0.0003,120]
[372399501,1752625500670,775.48457384,0.00030127,120]
[372399502,1752625503740,1632.61,0.0003,120]
[372399503,1752625525154,1632.61,0.00030127,120]
[372399504,1752625536686,1632.61,0.0003013,120]
[372399516,1752625584526,1632.61,0.0003013,120]
[372399517,1752625607420,1632.61,0.0003013,120]
[372399518,1752625620549,1632.61,0.0003013,120]
[372399538,1752625641665,1632.61,0.0003013,120]
[372399544,1752625659345,1632.61,0.000301,120]
[372399545,1752625667589,1632.61,0.0003013,120]
[372399546,1752625677508,1632.61,0.0003013,120]
[372399547,1752625686171,1632.61,0.0003013,120]
[372399557,1752625747524,5000.0,0.00030133,120]
[372399558,1752625810253,1530.0,0.00030135,120]
[372399563,1752625831994,-793.22740579,0.00018,2]
[372399564,1752625832004,-179.82,0.00019178,2]
[372399565,1752625832016,-519.0,0.00019239,2]
[372399566,1752625832026,-1200.0,0.00019399,2]
[372399567,1752625832037,-300.0,0.00019399,2]
[372399568,1752625832047,-43959.98937876,0.000194,2]
[372399569,1752625832057,-1000.0,0.000198,3]
[372399570,1752625832067,-1000.0,0.000198,3]
[372399571,1752625832076,-1183.59738527,0.000199,2]
[372399572,1752625832086,-250.0,0.00019996,2]
[372399573,1752625832095,-1183.59738513,0.00020038,2]
[372399574,1752625832107,-1183.59738513,0.00020176,2]
[372399575,1752625832116,-173.23,0.00020187,2]
[372399576,1752625832126,-1183.59738513,0.00020314,3]
[372399577,1752625832135,-209.77,0.00020393,2]
[372399578,1752625832144,-1027.98,0.00020409,2]
[372399579,1752625832154,-1183.59738513,0.00020452,3]
[372399580,1752625832164,-152.0,0.00020454,3]
[372399582,1752625832174,-166.33,0.0002054,2]
[372399584,1752625832183,-152.0,0.00020588,4]
[372399585,1752625832193,-1183.59738513,0.0002059,3]
[372399586,1752625832202,-287.76752307,0.00020601,2]
[372399588,1752625832211,-1000.0,0.00020696,2]
[372399591,1752625832221,-190.0,0.00020701,7]
[372399594,1752625832230,-152.0,0.00020722,5]
[372399597,1752625832241,-1183.59738513,0.00020728,3]
[372399599,1752625832250,-152.0,0.00020856,6]
[372399601,1752625832259,-1183.59738513,0.00020866,4]
[372399603,1752625832269,-368.33772403,0.00020871,2]
[372399667,1752625837747,-506.57227597,0.00020871,2]
[372399668,1752625837756,-163.22,0.00020871,2]
[372399669,1752625837766,-183.682716,0.00020876,2]
[372399670,1752625837776,-183.682716,0.00020876,2]
[372399671,1752625837787,-609.24229368,0.00020876,2]
[372399672,1752625838118,-415.03428332,0.00020876,2]
[372399798,1752625840531,-823.81674993,0.00020876,2]
[372399835,1752626167410,2859.22023946,0.000301,120]
[372399837,1752626248247,449.0,0.00030136,120]
[372399838,1752626308908,518.0,0.00017239,2]
[372399844,1752626732853,174.82,0.00013699,2]
[372399911,1752626852831,500.0,0.000211,30]
[372399912,1752626868064,550.0,0.000211,30]
[372399913,1752626874554,3699.20521348,0.000211,30]
[372399914,1752626874576,69.04478652,0.000211,30]
[372399924,1752627032129,-380.81273523,0.00018409,2]
[372399925,1752627032139,-397.60394295,0.00018529,2]
[372399926,1752627032236,-120.39605705,0.00018529,2]
[372399927,1752627032245,-300.0,0.0001995,2]
[372399928,1752627032255,-1071.25703312,0.0001995,2]
[372399929,1752627032291,-128.74296688,0.0001995,2]
[372399930,1752627032301,-225.3491123,0.00019951,2]
[372400121,1752627040157,-659.43320016,0.00019951,2]
[372400123,1752627040170,-1391.34727439,0.00019951,2]
[372400138,1752627040313,-20323.02050217,0.00019951,2]
[372400141,1752627040328,-500.0,0.00019951,2]
[372400194,1752627043096,-800.84991098,0.00019951,2]
[372400195,1752627043106,-288.55734001,0.00019991,2]
[372400196,1752627043118,-330.74,0.00020161,2]
[372400197,1752627043135,-174.82,0.00020187,2]
[372400198,1752627043145,-1000.0,0.0002034,2]
[372400199,1752627043154,-541.84040823,0.00020398,2]
[372400200,1752627043277,-1280.86107533,0.00020398,2]
[372400201,1752627043288,-355.5148466,0.0002041,2]
[372400206,1752627046058,-120.0451534,0.0002041,2]
[372400207,1752627046068,-190.0,0.00020481,7]
[372400208,1752627046078,-250.0,0.00020517,2]
[372400209,1752627046087,-437.45,0.00020578,2]
[372400210,1752627046097,-156.66,0.00020598,2]
[372400211,1752627046106,-500.0,0.0002063,2]
[372400212,1752627046115,-500.0,0.0002063,2]
[372400213,1752627046125,-500.0,0.0002063,2]
[372400214,1752627046134,-500.0,0.0002063,2]
[372400215,1752627046144,-500.0,0.0002063,2]
[372400216,1752627046153,-500.0,0.0002063,2]
[372400217,1752627046162,-500.0,0.0002063,2]
[372400218,1752627046171,-500.0,0.0002063,2]
[372400219,1752627046180,-500.0,0.0002063,2]
[372400220,1752627046190,-500.0,0.0002063,2]
[372400221,1752627046199,-600.0,0.0002063,2]
[372400222,1752627046209,-500.0,0.0002063,2]
[372400223,1752627046218,-500.0,0.0002063,2]
[372400224,1752627046228,-600.0,0.0002063,2]
[372400225,1752627046237,-500.0,0.0002063,2]
[372400226,1752627046247,-500.0,0.0002063,2]
[372400227,1752627046256,-70.24009477,0.0002063,2]
[372400228,1752627046268,-429.75990523,0.0002063,2]
[372400229,1752627046277,-329.77291148,0.0002063,2]
[372400230,1752627046509,-270.22708852,0.0002063,2]
[372400231,1752627046519,-485.45142972,0.0002063,2]
[372400232,1752627046542,-14.54857028,0.0002063,2]
[372400233,1752627046553,-600.0,0.0002063,2]
[372400234,1752627046563,-500.0,0.0002063,2]
[372400235,1752627046573,-500.0,0.0002063,2]
[372400236,1752627046583,-600.0,0.0002063,2]
[372400237,1752627046593,-500.0,0.0002063,2]
[372400238,1752627046602,-500.0,0.0002063,2]
[372400239,1752627046611,-500.0,0.0002063,2]
[372400240,1752627046621,-500.0,0.0002063,2]
[372400241,1752627046631,-500.0,0.0002063,2]
[372400243,1752627046640,-149.12550772,0.0002063,2]
[372400249,1752627303923,1000.0,0.00030136,120]
[372400250,1752627312722,1000.0,0.00030136,120]
[372400251,1752627325322,669.0,0.00030136,120]
[372400252,1752627718959,213.18,0.0003,120]
[372400253,1752627788616,172.86,0.00015596,2]
[372400254,1752627899544,164.9,0.00013699,2]
[372400267,1752627972640,194.41,0.00016712,2]
[372400311,1752628232148,-255.87911738,0.00018,2]
[372400312,1752628232158,-34.11148404,0.0001887,2]
[372400313,1752628232207,-965.88851596,0.0001887,2]
[372400314,1752628232217,-2079.31,0.00018914,2]
[372400315,1752628232227,-4141.43,0.00018916,2]
[372400316,1752628232236,-200.0,0.00018969,2]
[372400317,1752628232246,-1200.0,0.00018984,2]
[372400318,1752628232255,-518.0,0.00018985,2]
[372400319,1752628232265,-2000.0,0.0001912,2]
[372400320,1752628232275,-23900.0,0.00019121,2]
[372400321,1752628232286,-4732.37,0.00019195,2]
[372400322,1752628232296,-470.33,0.00019197,2]
[372400323,1752628232305,-1163.69,0.00019205,2]
[372400324,1752628232315,-6980.47,0.00019473,2]
[372400325,1752628232325,-15745.69455368,0.00019493,2]
[372400326,1752628232354,-73375.0211757,0.00019493,2]
[372400327,1752628232366,-800.71,0.00019493,2]
[372400328,1752628232389,-347.77308168,0.00019493,2]
[372400329,1752628232472,-1829.00406352,0.00019493,2]
[372400347,1752628232622,-300.47194998,0.00019493,2]
[372400349,1752628232634,-344.12057248,0.00019493,2]
[372400351,1752628232647,-254.09824504,0.00019493,2]
[372400354,1752628232658,-347.46104716,0.00019493,2]
[372400963,1752628238634,-8839.31791455,0.00019493,2]
[372400965,1752628238645,-2751.84191226,0.00019493,2]
[372400967,1752628238656,-591.15,0.00019493,2]
[372400971,1752628238682,-16176.3819798,0.00019493,2]
[372401112,1752628240213,-2049.0282708,0.00019493,2]
[372401114,1752628240225,-442247.01509088,0.00019493,2]
[372401121,1752628240274,-463.59063249,0.00019493,2]
[372401157,1752628240615,-1185.363996,0.00019493,2]
[372401435,1752628243292,-370.19452926,0.00019493,2]
[372401437,1752628243302,-2590.98014273,0.00019493,2]
[372401489,1752628243916,-28.04195395,0.00019493,2]
[372401490,1752628243963,-2069.61087507,0.00019493,2]
[372401705,1752628246200,-480.0,0.00019315,2]
[372401707,1752628246210,-511.7229349,0.00019493,2]
[372401709,1752628246222,-1722.69929523,0.00019493,2]
[372401716,1752628246361,-810.034125,0.00019493,2]
[372401717,1752628246373,-1427.667372,0.00019493,2]
[372401720,1752628246445,-423.12755315,0.00019493,2]
[372401730,1752628249452,250.0,0.00015,2]
[372401731,1752628356332,5000.0,0.00030137,120]
[372401732,1752628506496,528.75,0.000291,120]
[372401733,1752628701215,505.74786881,0.00018,5]
[372401737,1752628885912,194.67,0.00013699,2]
[372401738,1752628917554,200.0,0.00017432,2]
[372401739,1752629095446,-1200.0,0.00018984,2]
[372401740,1752629095471,-333.0,0.00018984,2]
[372401741,1752629095497,-250.0,0.00018984,2]
[372401742,1752629095522,-183.682716,0.00018984,2]
[372401743,1752629095546,-183.682716,0.00018985,2]
[372401744,1752629095571,-2602.68,0.00018985,2]
[372401745,1752629095597,-1852.42,0.00018985,2]
[372401746,1752629095621,-1052.71,0.00019001,2]
[372401747,1752629095647,-156.66,0.00019037,2]
[372401748,1752629095673,-966.2,0.00019041,2]
[372401749,1752629095698,-22428.66,0.00019129,2]
[372401750,1752629095722,-4261.5,0.0001916,2]
[372401751,1752629095747,-156.66,0.00019228,2]
[372401752,1752629095772,-3570.04,0.00019249,2]
[372401753,1752629095798,-2751.0,0.00019262,2]
[372401754,1752629095824,-190.0,0.00019273,7]
[372401755,1752629095849,-1000.0,0.00019283,2]
[372401756,1752629095873,-305.0,0.00019288,2]
[372401757,1752629095897,-500.0,0.00019288,2]
[372401758,1752629095928,-500.0,0.00019288,2]
[372401759,1752629095954,-500.0,0.00019288,2]
[372401760,1752629095982,-500.0,0.00019288,2]
[372401761,1752629096008,-500.0,0.00019288,2]
[372401762,1752629096033,-500.0,0.00019288,2]
[372401763,1752629096058,-500.0,0.00019288,2]
[372401764,1752629096083,-500.0,0.00019288,2]
[372401765,1752629096109,-500.0,0.00019288,2]
[372401766,1752629096136,-500.0,0.00019288,2]
[372401767,1752629096163,-500.0,0.00019288,2]
[372401768,1752629096194,-500.0,0.00019288,2]
[372401769,1752629096219,-500.0,0.00019288,2]
[372401770,1752629096243,-500.0,0.00019288,2]
[372401771,1752629096273,-500.0,0.00019288,2]
[372401772,1752629096298,-500.0,0.00019288,2]
[372401773,1752629096325,-500.0,0.00019288,2]
[372401774,1752629096350,-500.0,0.00019288,2]
[372401775,1752629096376,-500.0,0.00019288,2]
[372401776,1752629096402,-500.0,0.00019288,2]
[372401777,1752629096427,-600.0,0.00019288,2]
[372401778,1752629096452,-500.0,0.00019288,2]
[372401779,1752629096477,-600.0,0.00019288,2]
[372401780,1752629096502,-500.0,0.00019288,2]
[372401781,1752629096526,-600.0,0.00019288,2]
[372401782,1752629096550,-500.0,0.00019288,2]
[372401783,1752629096573,-500.0,0.00019288,2]
[372401784,1752629096598,-600.0,0.00019288,2]
[372401785,1752629096624,-600.0,0.00019288,2]
[372401786,1752629096648,-500.0,0.00019288,2]
[372401787,1752629096673,-500.0,0.00019288,2]
[372401788,1752629096697,-500.0,0.00019288,2]
[372401789,1752629096721,-600.0,0.00019288,2]
[372401790,1752629096744,-500.0,0.00019288,2]
[372401791,1752629096769,-600.0,0.00019288,2]
[372401792,1752629096793,-500.0,0.00019288,2]
[372401793,1752629096818,-600.0,0.00019288,2]
[372401794,1752629096842,-500.0,0.00019288,2]
[372401795,1752629097110,-600.0,0.00019288,2]
[372401796,1752629097138,-500.0,0.00019288,2]
[372401797,1752629097162,-600.0,0.00019288,2]
[372401798,1752629097188,-500.0,0.00019288,2]
[372401799,1752629097210,-600.0,0.00019288,2]
[372401800,1752629097235,-500.0,0.00019288,2]
[372401801,1752629097264,-600.0,0.00019288,2]
[372401802,1752629097289,-500.0,0.00019288,2]
[372401803,1752629097314,-600.0,0.00019288,2]
[372401804,1752629097339,-500.0,0.00019288,2]
[372401805,1752629097364,-600.0,0.00019288,2]
[372401806,1752629097389,-500.0,0.00019288,2]
[372401807,1752629097415,-600.0,0.00019288,2]
[372401808,1752629097440,-500.0,0.00019288,2]
[372401809,1752629097467,-500.0,0.00019288,2]
[372401810,1752629097495,-600.0,0.00019288,2]
[372401811,1752629097520,-500.0,0.00019288,2]
[372401812,1752629097544,-400.0,0.00019288,2]
[372401813,1752629097568,-423.68492096,0.00019288,2]
[372401814,1752629097592,-151.0,0.00019288,2]
[372401815,1752629097616,-151.0,0.00019288,2]
[372401816,1752629097641,-151.0,0.00019288,2]
[372401817,1752629097666,-151.0,0.00019288,2]
[372401818,1752629097691,-151.0,0.00019288,2]
[372401819,1752629097717,-151.0,0.00019288,2]
[372401820,1752629097743,-151.0,0.00019288,2]
[372401821,1752629097776,-151.0,0.00019288,2]
[372401822,1752629097803,-151.0,0.00019288,2]
[372401823,1752629097828,-151.0,0.00019288,2]
[372401824,1752629097854,-151.0,0.00019288,2]
[372401825,1752629097878,-500.0,0.00019288,2]
[372401826,1752629097903,-617.61333493,0.00019288,2]
[372401827,1752629097927,-273.56,0.00019297,2]
[372401828,1752629097950,-6000.0,0.000193,2]
[372401829,1752629097975,-200.0,0.0001932,2]
[372401830,1752629097999,-890.59,0.00019323,2]
[372401831,1752629098024,-250.0,0.00019325,2]
[372401832,1752629098048,-165.45,0.00019336,2]
[372401833,1752629098073,-1284.45863,0.0001949,2]
[372401834,1752629098097,-1000.0,0.00019492,2]
[372401835,1752629098122,-1000.0,0.00019492,2]
[372401836,1752629098146,-151.0,0.00019493,2]
[372401837,1752629100518,518.0,0.00019402,2]
[372401840,1752629102023,1003.0,0.00019287,2]
[372401851,1752629144748,-1284.45863,0.0001953,2]
[372401852,1752629144773,-1284.45864,0.0001966,2]
[372401853,1752629144797,-164.08,0.00019666,2]
[372401854,1752629144823,-1284.45863,0.0001978,2]
[372401855,1752629144847,-167.2,0.00019789,2]
[372401856,1752629144872,-150.0,0.00019833,2]
[372401857,1752629144898,-464.5,0.00019841,2]
[372401858,1752629144921,-1268.42772013,0.000199,2]
[372401859,1752629144946,-1284.45864,0.0001991,2]
[372401860,1752629145129,-2549.86361197,0.00019977,2]
[372401861,1752629145155,-28076.27205423,0.00019987,2]
[372401862,1752629145179,-966.2,0.00019993,2]
[372401863,1752629145205,-2000.0,0.00019999,2]
[372401864,1752629145229,-29137.31847895,0.0002,2]
[372401865,1752629145253,-151.0,0.0002,2]
[372401866,1752629145278,-151.0,0.0002,2]
[372401867,1752629145303,-151.0,0.0002,2]
[372401868,1752629145335,-263.454175,0.0002,2]
[372401869,1752629145360,-151.0,0.0002,2]
[372401870,1752629145384,-151.0,0.0002,2]
[372401871,1752629145410,-178.88942,0.0002,2]
[372401872,1752629145433,-151.0,0.0002,2]
[372401873,1752629145457,-151.0,0.0002,2]
[372401874,1752629145483,-273.56,0.00020021,2]
[372401875,1752629145507,-1284.45863,0.0002003,2]
[372401876,1752629145531,-151.0,0.00020038,2]
[372401877,1752629145555,-205.617308,0.00020038,2]
[372401878,1752629145581,-150.0,0.00020066,2]
[372401879,1752629145606,-157.85,0.00020066,2]
[372401880,1752629145631,-157.85,0.00020083,2]
[372401881,1752629145658,-157.85,0.000201,2]
[372401882,1752629145683,-157.85,0.00020116,2]
[372401883,1752629145712,-255.56745204,0.0002012,2]
[372401884,1752629145736,-151.0,0.00020133,2]
[372401885,1752629145764,-151.0,0.00020133,2]
[372401886,1752629145789,-151.0,0.00020133,2]
[372401887,1752629145819,-151.0,0.00020133,2]
[372401888,1752629145845,-151.0,0.00020133,2]
[372401889,1752629145892,-151.0,0.00020133,2]
[372401890,1752629145920,-151.0,0.00020133,2]
[372401891,1752629145948,-157.85,0.00020133,2]
[372401892,1752629145975,-157.85,0.0002015,2]
[372401893,1752629146001,-157.85,0.00020167,2]
[372401894,1752629146026,-157.85,0.00020183,2]
[372401895,1752629146051,-194.67,0.00020187,2]
[372401896,1752629146077,-157.85,0.000202,2]
[372401897,1752629146103,-297.4,0.00020216,2]
[372401898,1752629146128,-157.85,0.00020217,2]
[372401899,1752629146156,-157.85,0.00020233,2]
[372401900,1752629146180,-157.85,0.0002025,2]
[372401901,1752629146207,-157.85,0.00020267,2]
[372401902,1752629146234,-150.0,0.00020284,2]
[372401903,1752629146259,-168.0,0.00020326,2]
[372401904,1752629146286,-168.0,0.00020375,2]
[372401905,1752629146312,-168.0,0.00020452,2]
[372401906,1752629146338,-564.283652,0.00020458,8]
[372401907,1752629146365,-150.0,0.00020465,2]
[372401908,1752629146401,-150.0,0.00020585,2]
[372401909,1752629146426,-151.0,0.00020589,2]
[372401910,1752629146451,-151.0,0.00020589,2]
[372401911,1752629146477,-151.0,0.00020589,2]
[372401912,1752629146503,-500.0,0.0002063,2]
[372401913,1752629146527,-500.0,0.0002063,2]
[372401914,1752629146551,-187.07473204,0.0002063,2]
[372401915,1752629146575,-500.0,0.0002063,2]
[372401916,1752629146601,-761.0,0.0002063,2]
[372401917,1752629146625,-500.0,0.0002063,2]
[372401918,1752629146649,-500.0,0.0002063,2]
[372401919,1752629146674,-176.23728123,0.0002063,2]
[372401920,1752629146699,-500.0,0.0002063,2]
[372401921,1752629146723,-808.0,0.0002063,2]
[372401922,1752629146747,-500.0,0.0002063,2]
[372401923,1752629146772,-249.60929761,0.0002063,2]
[372401924,1752629146796,-426.0,0.0002063,2]
[372401925,1752629146821,-598.0,0.0002063,2]
[372401926,1752629146846,-2172.0,0.0002063,2]
[372401927,1752629146870,-150.0,0.0002063,2]
[372401928,1752629146895,-250.0,0.0002063,2]
[372401929,1752629146924,-500.0,0.0002063,2]
[372401930,1752629146950,-151.0,0.0002063,2]
[372401931,1752629146976,-500.0,0.0002063,2]
[372401932,1752629147002,-150.0,0.0002063,2]
[372401933,1752629147026,-2079.0,0.0002063,2]
[372401934,1752629147051,-151.0,0.0002063,2]
[372401935,1752629147075,-151.0,0.0002063,2]
[372401936,1752629147100,-151.0,0.0002063,2]
[372401937,1752629147125,-151.0,0.0002063,2]
[372401938,1752629147150,-500.0,0.0002063,2]
[372401939,1752629147175,-151.0,0.0002063,2]
[372401940,1752629147204,-6303.0,0.0002063,2]
[372401941,1752629147229,-151.0,0.0002063,2]
[372401942,1752629147255,-250.86617086,0.0002063,2]
[372401943,1752629147280,-500.0,0.0002063,2]